Workbook

Sheet Startgegevens (hidden)
A1: Startgegevens
A3: Werktijdsfactor | B3: 0.3753 | C3: =IF(B3="","Gegevens ontbreken","") -> 
A4: Schaal | B4: 1 | C4: =IF(B4="","Gegevens ontbreken","") -> 
A5: Trede | B5: 7 | C5: =IF(B5="","Gegevens ontbreken","") -> 
A6: Brutoloon | B6: =VLOOKUP($B$4,Salaristabellen!$A$3:$AC$41,Startgegevens!$B$5+2,FALSE) -> 2392 | C6: Loonpeil 1 juli 2023
A7: Bruteringstoelage | B7: 0 | C7: =IF(B7="","Gegevens ontbreken","") -> 
A8: Percentage inhouding | B8: =VLOOKUP(B4,Salaristabellen!$A$3:$B$40,2,FALSE) -> 40
Q9: =DATE(S17,R17,Q17) -> 1967-01-19
A10: 1. a) Bent u geboren voor 1-10-1958?
A13: 1. b) Genoot u per 30-9-2014 bapo?
A16: 2. Bent u geboren voor | B16: =Q9 -> 1967-01-19
Q17: =DAY(TODAY()) -> 19 | R17: =MONTH(TODAY()) -> 1 | S17: =YEAR(TODAY())-57 -> 1967
A19: 3. a) Bent u geboren voor 1-10-1962?
A22: 3. b) Genoot u per 30-9-2014 bapo?
A25: ="U heeft recht op "&40*B3&" uur duurzame inzetbaarheid." -> U heeft recht op 15,012 uur duurzame inzetbaarheid.

Sheet Nieuwe regeling
A1: Nieuwe regeling
A5: Nieuwe regeling
A6: Basisbudget | C6: =ROUND(40*Startgegevens!$B$3,0) -> 15 | D6: uur
A7: Bijzonder budget | C7: =ROUND(130*Startgegevens!$B$3,0) -> 49 | D7: uur
A8: Totaal budget | C8: =SUM(C6:C7) -> 64 | D8: uur
A9: Opgebouwd budget spaarverlof
A10: Gewenst aantal uren op te nemen spaarverlof | C10: 0 | D10: ="tussen 0 en "&MIN(C9,340*Startgegevens!$B$3) -> tussen 0 en 127,602
A11: Gewenst aantal uren regulier verlof | C11: 64 | D11: ="tussen 0 en "&C8 -> tussen 0 en 64 | N11: ="U heeft jaarlijks recht op "&C8&" uur aan verlof. Dit is opgebouwd uit een basisbudget van "&C6&" uur en een bijzonder budget van "&C7 -> U heeft jaarlijks recht op 64 uur aan verlof. Dit is opgebouwd uit een basisbudget van 15 uur en een bijzonder budget van 49
N12: uur. Wanneer u een deel van dit budget in wilt zetten voor verlof, betaald u over het bijzonder budget een eigen bijdrage. Bij opname van verlof moet eerst het bijzonder budget worden ingezet.
A13: Resultaat | N13: ="Vult u in blauwe vak een gewenst aantal uren verlof in. Dit moet liggen tussen de 0 en de "&C8&" uur." -> Vult u in blauwe vak een gewenst aantal uren verlof in. Dit moet liggen tussen de 0 en de 64 uur.
A14: Aantal uur verlof zonder eigen bijdrage | C14: =ROUND(IF(C11="","",IF(C11>=C7,C11-C7,0))+IF(C11>0,C10/C8*C6,0),0) -> 15 | D14: uur
A15: Aantal uur mét eigen bijdrage (bijzonder budget) | C15: =ROUND(IF(C11="","",IF(C11>=C7,C7,C11)+IF(C10>0,C10/C8*C7,0)),0) -> 49 | D15: uur
A16: Beschikbaar voor duurzame inzetbaarheid | C16: =IF(C11="","",C6-C14+C7-C15+C10) -> 0 | D16: uur
A18: Eigen bijdrage per maand | B18: =IF(C11="","Vul gewenst aantal uren verlof in",((C15/1659)*(Startgegevens!$B$6+Startgegevens!$B$7)))*Startgegevens!B8/100 -> 28.25991561 | C18: =Startgegevens!C6 -> Loonpeil 1 juli 2023
A21: Toelichting
A22: =N11&N12&N13 -> U heeft jaarlijks recht op 64 uur aan verlof. Dit is opgebouwd uit een basisbudget van 15 uur en een bijzonder budget van 49 uur. Wanneer u een deel van dit budget in wilt zetten voor verlof, betaald u over het bijzonder budget een eigen bijdrage. Bij opname van verlof moet eerst het bijzonder budget worden ingezet. Vult u in blauwe vak een gewenst aantal uren verlof in. Dit moet liggen tussen de 0 en de 64 uur.
A24: Ondertekening bevoegd gezag en aanvrager
A26: Naam medewerker
A27: Geboortedatum
A28: Ingangsdatum voor salarisadministratie
A30: Ondertekening medewerker | E30: Ondetekening bevoegd gezag
A31: Datum | E31: Datum
A32: Handtekening | E32: Handtekening

Sheet Overgangsregeling 1 (hidden)
A1: Overgangsregeling 1
A5: Nieuwe regeling
A6: Basisbudget | C6: =ROUND(40*Startgegevens!$B$3,0) -> 15 | D6: uur
A7: Bijzonder budget | C7: =ROUND(130*Startgegevens!$B$3,0) -> 49 | D7: uur
A8: Totaal budget | C8: =SUM(C6:C7) -> 64 | D8: uur
A9: Gewenst aantal uren verlof | C9: 170 | D9: ="tussen 0 en "&C8 -> tussen 0 en 64 | N9: ="U heeft jaarlijks recht op "&C8&" uur aan verlof. Dit is opgebouwd uit een basisbudget van "&C6&" uur en een bijzonder budget van "&C7 -> U heeft jaarlijks recht op 64 uur aan verlof. Dit is opgebouwd uit een basisbudget van 15 uur en een bijzonder budget van 49
N10: uur. Wanneer u een deel van dit budget in wilt zetten voor verlof, betaald u over een vaste verhouding van deze uren een eigen bijdrage.
A11: Resultaat | N11: ="Vult u in blauwe vak een gewenst aantal uren verlof in. Dit moet liggen tussen de 0 en de "&C8&" uur. " -> Vult u in blauwe vak een gewenst aantal uren verlof in. Dit moet liggen tussen de 0 en de 64 uur.
A12: Aantal uur verlof zonder eigen bijdrage | C12: =IF(C9="","",C9*(40/170)) -> 40 | D12: uur | N12: ="Een hoger aantal uur verlof leidt tot een hogere eigen bijdrage en minder resterende uren voor duurzame inzetbaarheid. " -> Een hoger aantal uur verlof leidt tot een hogere eigen bijdrage en minder resterende uren voor duurzame inzetbaarheid.
A13: Aantal uur mét eigen bijdrage (bijzonder budget) | C13: =IF(C9="","",C9*(130/170)) -> 130 | D13: uur
A14: Beschikbaar voor duurzame inzetbaarheid | C14: =IF(C9="","",C6-C12+C7-C13) -> -106 | D14: uur
A16: Eigen bijdrage per maand | B16: =IF(C9="","Vul gewenst aantal uren verlof in",(C13/1659)*Startgegevens!$B$3*(Startgegevens!$B$6+Startgegevens!$B$7)) -> 70.34556239 | C16: =Startgegevens!C6 -> Loonpeil 1 juli 2023
A19: Toelichting
A20: =N9&N10&N11&N12 -> U heeft jaarlijks recht op 64 uur aan verlof. Dit is opgebouwd uit een basisbudget van 15 uur en een bijzonder budget van 49 uur. Wanneer u een deel van dit budget in wilt zetten voor verlof, betaald u over een vaste verhouding van deze uren een eigen bijdrage. Vult u in blauwe vak een gewenst aantal uren verlof in. Dit moet liggen tussen de 0 en de 64 uur. Een hoger aantal uur verlof leidt tot een hogere eigen bijdrage en minder resterende uren voor duurzame inzetbaarheid.
A22: Ondertekening bevoegd gezag en aanvrager
A24: Naam medewerker
A25: Geboortedatum
A26: Ingangsdatum voor salarisadministratie
A28: Ondertekening medewerker | E28: Ondetekening bevoegd gezag
A29: Datum | E29: Datum
A30: Handtekening | E30: Handtekening

Sheet Overgangsregeling 2 (hidden)
A1: Overgangsregeling 2
A5: Overgangsregeling 2
A6: Basisbudget | C6: =ROUND(40*Startgegevens!$B$3,0) -> 15 | D6: uur | N6: ="U heeft jaarlijks recht op "&C9&" uur aan duurzame inzetbaarheid. Dit is opgebouwd uit een basisbudget van "&C6&" uur, een bijzonder budget van "&C7&" uur en een overgangsbudget van "&C8&" uur. " -> U heeft jaarlijks recht op 128 uur aan duurzame inzetbaarheid. Dit is opgebouwd uit een basisbudget van 15 uur, een bijzonder budget van 49 uur en een overgangsbudget van 64 uur.
A7: Bijzonder budget | C7: =ROUND(130*Startgegevens!$B$3,0) -> 49 | D7: uur | N7: ="Wanneer u een deel van dit budget in wilt zetten voor verlof, betaald u over het bijzonder budget en het overgangsbudget een eigen bijdrage. Het overgangsbudget kan enkel ingezet worden voor verlof. " -> Wanneer u een deel van dit budget in wilt zetten voor verlof, betaald u over het bijzonder budget en het overgangsbudget een eigen bijdrage. Het overgangsbudget kan enkel ingezet worden voor verlof.
A8: Overgangsbudget | C8: =ROUND(170*Startgegevens!$B$3,0) -> 64 | D8: uur | N8: ="Vult u in het eerste blauwe vak uw gewenst aantal uren verlof in. Dit moet liggen tussen de 0 en de "&C9&" uur. In het tweede blauwe vak moet u een keuze maken hoeveel uur van dit verlof u wilt putten uit het overgangsbudget. " -> Vult u in het eerste blauwe vak uw gewenst aantal uren verlof in. Dit moet liggen tussen de 0 en de 128 uur. In het tweede blauwe vak moet u een keuze maken hoeveel uur van dit verlof u wilt putten uit het overgangsbudget.
A9: Totaal budget | C9: =SUM(C6:C8) -> 128 | D9: uur | N9: ="Een laag gebruik van het overgangsbudget zorgt voor een lage eigen bijdrage en een laag restant aan uren voor duurzame inzetbaarheid. " -> Een laag gebruik van het overgangsbudget zorgt voor een lage eigen bijdrage en een laag restant aan uren voor duurzame inzetbaarheid.
A10: Gewenst aantal uur verlof | C10: 214 | D10: ="tussen 0 en "&C9 -> tussen 0 en 128 | N10: ="Een hoog gebruik van het overgangsbudget zorgt voor een hoge eigen bijdrage, maar ook een hoog restant aan uren voor duurzame inzetbaarheid. " -> Een hoog gebruik van het overgangsbudget zorgt voor een hoge eigen bijdrage, maar ook een hoog restant aan uren voor duurzame inzetbaarheid.
A11: Waarvan overgangsbudget (eigen bijdrage) | C11: 107 | D11: =IF(C10="","",("tussen "&IF(C10>C8,C10-C8,0)&" en "&IF(C10<C8,C10,C8))) -> tussen 150 en 64 | N11: ="Over de uren verlof die niet uit het overgangsbudget komen wordt een vaste verhouding geput uit het bijzonder budget dus betaald u over een vaste verhouding een eigen bijdrage. " -> Over de uren verlof die niet uit het overgangsbudget komen wordt een vaste verhouding geput uit het bijzonder budget dus betaald u over een vaste verhouding een eigen bijdrage.
A13: Resultaat
A14: Aantal uur verlof zonder eigen bijdrage | C14: =IF(C10="","",IF(C11="","",(IF($C$10-$C$11>0,($C$10-$C$11)*(40/170),0)))) -> 25.17647059 | D14: uur
A15: Aantal uur verlof mét eigen bijdrage (bijzonder budget) | C15: =IF(C10="","",IF(C11="","",(IF($C$10-$C$11>0,($C$10-$C$11)*(130/170),0)))) -> 81.82352941 | D15: uur
A16: Aantal uur verlof mét eigen bijdrage (overgangsbudget) | C16: =IF(C10="","",IF(C11="","",(C11))) -> 107 | D16: uur | F16: =C16+C15 -> 188.8235294
A17: Beschikbaar voor duurzame inzetbaarheid | C17: =IF(C10="","",IF(C11="","",(C6-C14+C7-C15))) -> -43 | D17: uur
A19: Eigen bijdrage per maand | B19: =IF(C10="","Vul gewenst aantal uur verlof in",IF(C11="","Vul gewenst aantal uren overgangsbudget in",(((C16+C15)/1659)*Startgegevens!$B$3*(Startgegevens!$B$6+Startgegevens!$B$7)))) -> 102.1761336 | C19: =Startgegevens!C6 -> Loonpeil 1 juli 2023
A21: Toelichting
A22: =N6&N7&N8&N9&N10&N11 -> U heeft jaarlijks recht op 128 uur aan duurzame inzetbaarheid. Dit is opgebouwd uit een basisbudget van 15 uur, een bijzonder budget van 49 uur en een overgangsbudget van 64 uur. Wanneer u een deel van dit budget in wilt zetten voor verlof, betaald u over het bijzonder budget en het overgangsbudget een eigen bijdrage. Het overgangsbudget kan enkel ingezet worden voor verlof. Vult u in het eerste blauwe vak uw gewenst aantal uren verlof in. Dit moet liggen tussen de 0 en de 128 uur. In het tweede blauwe vak moet u een keuze maken hoeveel uur van dit verlof u wilt putten uit het overgangsbudget. Een laag gebruik van het overgangsbudget zorgt voor een lage eigen bijdrage en een laag restant aan uren voor duurzame inzetbaarheid. Een hoog gebruik van het overgangsbudget zorgt voor een hoge eigen bijdrage, maar ook een hoog restant aan uren voor duurzame inzetbaarheid. Over de uren verlof die niet uit het overgangsbudget komen wordt een vaste verhouding geput uit het bijzonder budget dus betaald u over een vaste verhouding een eigen bijdrage.
A24: Ondertekening bevoegd gezag en aanvrager
A26: Naam medewerker
A27: Geboortedatum
A28: Ingangsdatum voor salarisadministratie
A30: Ondertekening medewerker | E30: Ondetekening bevoegd gezag
A31: Datum | E31: Datum
A32: Handtekening | E32: Handtekening

Sheet Salaristabellen (hidden)
A1: salaristabellen
A2: schaal / regel | C2: 1 | D2: 2 | E2: 3 | F2: 4 | G2: 5 | H2: 6 | I2: 7 | J2: 8 | K2: 9 | L2: 10 | M2: 11 | N2: 12 | O2: 13 | P2: 14 | Q2: 15 | R2: 16 | S2: 17 | T2: 18 | U2: 19 | V2: 20 | W2: 21 | X2: 22 | Y2: 23 | Z2: 24 | AA2: 25 | AB2: regels | AC2: categorie
A3: A10 | B3: 50 | C3: 3031 | D3: 3334 | E3: 3495 | F3: 3672 | G3: 3829 | H3: 3984 | I3: 4132 | J3: 4279 | K3: 4438 | L3: 4580 | M3: 4726 | N3: 4867 | O3: 5030 | S3: 0 | T3: 0 | U3: 0 | V3: 0 | AB3: =COUNTIF(C3:AA3,">0") -> 13 | AC3: DIR
A4: A11 | B4: 50 | C4: 3186 | D4: 3334 | E4: 3499 | F4: 3675 | G4: 3840 | H4: 4005 | I4: 4172 | J4: 4438 | K4: 4616 | L4: 4794 | M4: 4972 | N4: 5151 | O4: 5328 | P4: 5506 | Q4: 5685 | R4: 5862 | S4: 0 | T4: 0 | U4: 0 | V4: 0 | AB4: =COUNTIF(C4:AA4,">0") -> 16 | AC4: DIR
A5: A12 | B5: 50 | C5: 3334 | D5: 3531 | E5: 3759 | F5: 3988 | G5: 4216 | H5: 4475 | I5: 4762 | J5: 5083 | K5: 5431 | L5: 5813 | M5: 6223 | N5: 6665 | S5: 0 | T5: 0 | U5: 0 | V5: 0 | AB5: 12 | AC5: DIR
A6: A13 | B6: 50 | C6: 5187 | D6: 5343 | E6: 5490 | F6: 5641 | G6: 5786 | H6: 6089 | I6: 6235 | J6: 6383 | K6: 6570 | L6: 6759 | M6: 6946 | N6: 7134 | O6: 7225 | S6: 0 | T6: 0 | U6: 0 | V6: 0 | AB6: 13 | AC6: DIR
A7: B1 | B7: 50 | C7: 3186 | D7: 3334 | E7: 3499 | F7: 3675 | G7: 3840 | H7: 4005 | I7: 4172 | J7: 4438 | K7: 4616 | L7: 4794 | M7: 4972 | N7: 5151 | O7: 5328 | P7: 5506 | Q7: 5685 | R7: 5862 | S7: 0 | T7: 0 | U7: 0 | V7: 0 | AB7: 16 | AC7: DIR
A8: B2 | B8: 50 | C8: 3334 | D8: 3531 | E8: 3759 | F8: 3988 | G8: 4216 | H8: 4475 | I8: 4762 | J8: 5083 | K8: 5431 | L8: 5813 | M8: 6223 | N8: 6665 | S8: 0 | T8: 0 | U8: 0 | V8: 0 | AB8: 12 | AC8: DIR
A9: B3 | B9: 50 | C9: 5187 | D9: 5343 | E9: 5490 | F9: 5641 | G9: 5786 | H9: 6089 | I9: 6235 | J9: 6383 | K9: 6570 | L9: 6759 | M9: 6946 | N9: 7134 | O9: 7225 | S9: 0 | T9: 0 | U9: 0 | V9: 0 | AB9: 13 | AC9: DIR
A10: B4 | B10: 50 | C10: 5939 | D10: 6089 | E10: 6383 | F10: 6570 | G10: 6759 | H10: 6946 | I10: 7134 | J10: 7324 | K10: 7522 | L10: 7726 | M10: 7936 | S10: 0 | T10: 0 | U10: 0 | V10: 0 | AB10: 11 | AC10: DIR
A11: D11 | B11: 50 | C11: 3186 | D11: 3334 | E11: 3499 | F11: 3675 | G11: 3840 | H11: 4005 | I11: 4172 | J11: 4438 | K11: 4616 | L11: 4794 | M11: 4972 | N11: 5151 | O11: 5328 | P11: 5506 | Q11: 5685 | R11: 5862 | S11: 0 | T11: 0 | U11: 0 | V11: 0 | AB11: 16 | AC11: DIR
A12: D12 | B12: 50 | C12: 3334 | D12: 3531 | E12: 3759 | F12: 3988 | G12: 4216 | H12: 4475 | I12: 4762 | J12: 5083 | K12: 5431 | L12: 5813 | M12: 6223 | N12: 6665 | S12: 0 | T12: 0 | U12: 0 | V12: 0 | AB12: 12 | AC12: BEST
A13: D13 | B13: 50 | C13: 5187 | D13: 5343 | E13: 5490 | F13: 5641 | G13: 5786 | H13: 6089 | I13: 6235 | J13: 6383 | K13: 6570 | L13: 6759 | M13: 6946 | N13: 7134 | O13: 7225 | S13: 0 | T13: 0 | U13: 0 | V13: 0 | AB13: 13 | AC13: OOP
A14: D14 | B14: 50 | C14: 5939 | D14: 6089 | E14: 6383 | F14: 6570 | G14: 6759 | H14: 6946 | I14: 7134 | J14: 7324 | K14: 7522 | L14: 7726 | M14: 7936 | S14: 0 | T14: 0 | U14: 0 | V14: 0 | AB14: 11 | AC14: OOP
A15: D15 | B15: 50 | C15: 6235 | D15: 6383 | E15: 6570 | F15: 6946 | G15: 7134 | H15: 7324 | I15: 7522 | J15: 7726 | K15: 7936 | L15: 8187 | M15: 8448 | N15: 8714 | S15: 0 | T15: 0 | U15: 0 | V15: 0 | AB15: 12 | AC15: OOP
A16: LB | B16: 50 | C16: 3301 | D16: 3381 | E16: 3483 | F16: 3584 | G16: 3687 | H16: 3814 | I16: 3963 | J16: 4131 | K16: 4322 | L16: 4534 | M16: 4470 | N16: 5030 | O16: 0 | P16: 0 | Q16: 0 | R16: 0 | S16: 0 | T16: 0 | U16: 0 | V16: 0 | AB16: 12 | AC16: OP
A17: LC | B17: 50 | C17: 3321 | D17: 3479 | E17: 3659 | F17: 3840 | G17: 4019 | H17: 4219 | I17: 4441 | J17: 4683 | K17: 4946 | L17: 5231 | M17: 5536 | N17: 5862 | O17: 0 | P17: 0 | Q17: 0 | R17: 0 | S17: 0 | T17: 0 | U17: 0 | V17: 0 | AB17: 12 | AC17: OP
A18: LD | B18: 50 | C18: 3334 | D18: 3531 | E18: 3759 | F18: 3988 | G18: 4216 | H18: 4474 | I18: 4762 | J18: 5083 | K18: 5431 | L18: 5812 | M18: 6223 | N18: 6665 | O18: 0 | P18: 0 | Q18: 0 | R18: 0 | S18: 0 | T18: 0 | U18: 0 | V18: 0 | AB18: 12 | AC18: OP
A19: LE | B19: 50 | C19: 4279 | D19: 4438 | E19: 4580 | F19: 4867 | G19: 5187 | H19: 5478 | I19: 5768 | J19: 6060 | K19: 6351 | L19: 6641 | M19: 6931 | N19: 7225 | O19: 0 | P19: 0 | Q19: 0 | R19: 0 | S19: 0 | T19: 0 | U19: 0 | V19: 0 | AB19: 12 | AC19: OP
A20: LIOa | B20: 50 | C20: =C16*0.5 -> 1650.5 | D20: 0 | E20: 0 | F20: 0 | G20: 0 | H20: 0 | I20: 0 | J20: 0 | K20: 0 | L20: 0 | M20: 0 | N20: 0 | O20: 0 | P20: 0 | Q20: 0 | R20: 0 | S20: 0 | T20: 0 | U20: 0 | V20: 0 | AB20: 1 | AC20: OP
A21: LIOb | B21: 50 | C21: =C17*0.5 -> 1660.5 | D21: 0 | E21: 0 | F21: 0 | G21: 0 | H21: 0 | I21: 0 | J21: 0 | K21: 0 | L21: 0 | M21: 0 | N21: 0 | O21: 0 | P21: 0 | Q21: 0 | R21: 0 | S21: 0 | T21: 0 | U21: 0 | V21: 0 | AB21: 1 | AC21: OP
A22: 1 | B22: 40 | C22: 2054 | D22: 2135 | E22: 2214 | F22: 2252 | G22: 2294 | H22: 2336 | I22: 2392 | J22: 0 | K22: 0 | L22: 0 | M22: 0 | N22: 0 | O22: 0 | P22: 0 | Q22: 0 | R22: 0 | S22: 0 | T22: 0 | U22: 0 | V22: 0 | AB22: 7 | AC22: OOP-S
A23: 10 | B23: 40 | C23: 3031 | D23: 3334 | E23: 3495 | F23: 3672 | G23: 3829 | H23: 3984 | I23: 4132 | J23: 4279 | K23: 4438 | L23: 4580 | M23: 4726 | N23: 4867 | O23: 5030 | S23: 0 | T23: 0 | U23: 0 | V23: 0 | AB23: 13 | AC23: OOP-S
A24: 11 | B24: 40 | C24: 3186 | D24: 3334 | E24: 3499 | F24: 3675 | G24: 3840 | H24: 4005 | I24: 4172 | J24: 4438 | K24: 4616 | L24: 4794 | M24: 4972 | N24: 5151 | O24: 5328 | P24: 5506 | Q24: 5685 | R24: 5862 | S24: 0 | T24: 0 | U24: 0 | V24: 0 | AB24: 16 | AC24: OOP-S
A25: 12 | B25: 40 | C25: 3334 | D25: 3531 | E25: 3759 | F25: 3988 | G25: 4216 | H25: 4475 | I25: 4762 | J25: 5083 | K25: 5431 | L25: 5813 | M25: 6223 | N25: 6665 | S25: 0 | T25: 0 | U25: 0 | V25: 0 | AB25: 12 | AC25: OOP-S
A26: 13 | B26: 40 | C26: 5187 | D26: 5343 | E26: 5490 | F26: 5641 | G26: 5786 | H26: 6089 | I26: 6235 | J26: 6383 | K26: 6570 | L26: 6759 | M26: 6946 | N26: 7134 | O26: 7225 | S26: 0 | T26: 0 | U26: 0 | V26: 0 | AB26: 13 | AC26: OOP
A27: 14 | B27: 40 | C27: 5939 | D27: 6089 | E27: 6383 | F27: 6570 | G27: 6759 | H27: 6946 | I27: 7134 | J27: 7324 | K27: 7522 | L27: 7726 | M27: 7936 | S27: 0 | T27: 0 | U27: 0 | V27: 0 | AB27: 11 | AC27: OOP
A28: 15 | B28: 40 | C28: 6235 | D28: 6383 | E28: 6570 | F28: 6946 | G28: 7134 | H28: 7324 | I28: 7522 | J28: 7726 | K28: 7936 | L28: 8187 | M28: 8448 | N28: 8714 | S28: 0 | T28: 0 | U28: 0 | V28: 0 | AB28: 12 | AC28: OOP
A29: 16 | B29: 40 | C29: 6759 | D29: 6946 | E29: 7134 | F29: 7522 | G29: 7726 | H29: 7936 | I29: 8187 | J29: 8448 | K29: 8714 | L29: 8993 | M29: 9277 | N29: 9572 | S29: 0 | T29: 0 | U29: 0 | V29: 0 | AB29: 12 | AC29: OOP
A30: 2 | B30: 40 | C30: 2098 | D30: 2177 | E30: 2252 | F30: 2336 | G30: 2392 | H30: 2458 | I30: 2536 | J30: 2610 | P30: 0 | Q30: 0 | R30: 0 | S30: 0 | T30: 0 | U30: 0 | V30: 0 | AB30: 8 | AC30: OOP
A31: 3 | B31: 40 | C31: 2098 | D31: 2252 | E31: 2336 | F31: 2458 | G31: 2536 | H31: 2610 | I31: 2683 | J31: 2754 | K31: 2825 | P31: 0 | Q31: 0 | R31: 0 | S31: 0 | T31: 0 | U31: 0 | V31: 0 | AB31: 9 | AC31: OOP
A32: 4 | B32: 40 | C32: 2136 | D32: 2252 | E32: 2336 | F32: 2458 | G32: 2536 | H32: 2610 | I32: 2683 | J32: 2754 | K32: 2825 | L32: 2893 | M32: 2961 | P32: 0 | Q32: 0 | R32: 0 | S32: 0 | T32: 0 | U32: 0 | V32: 0 | AB32: 11 | AC32: OOP
A33: 5 | B33: 40 | C33: 2177 | D33: 2252 | E33: 2336 | F33: 2458 | G33: 2610 | H33: 2683 | I33: 2754 | J33: 2825 | K33: 2893 | L33: 2961 | M33: 3031 | N33: 3110 | P33: 0 | Q33: 0 | R33: 0 | S33: 0 | T33: 0 | U33: 0 | V33: 0 | AB33: 12 | AC33: OOP
A34: 6 | B34: 40 | C34: 2252 | D34: 2336 | E34: 2610 | F34: 2754 | G34: 2825 | H34: 2893 | I34: 2961 | J34: 3031 | K34: 3110 | L34: 3186 | M34: 3257 | P34: 0 | Q34: 0 | R34: 0 | S34: 0 | T34: 0 | U34: 0 | V34: 0 | AB34: 11 | AC34: OOP
A35: 7 | B35: 40 | C35: 2392 | D35: 2458 | E35: 2610 | F35: 2893 | G35: 3031 | H35: 3110 | I35: 3186 | J35: 3257 | K35: 3334 | L35: 3415 | M35: 3495 | N35: 3588 | P35: 0 | Q35: 0 | R35: 0 | S35: 0 | T35: 0 | U35: 0 | V35: 0 | AB35: 12 | AC35: OOP
A36: 8 | B36: 40 | C36: 2683 | D36: 2754 | E36: 2893 | F36: 3186 | G36: 3334 | H36: 3495 | I36: 3588 | J36: 3672 | K36: 3747 | L36: 3829 | M36: 3909 | N36: 3984 | O36: 4055 | P36: 0 | Q36: 0 | R36: 0 | S36: 0 | T36: 0 | U36: 0 | V36: 0 | AB36: 13 | AC36: OOP
A37: 9 | B37: 40 | C37: 3031 | D37: 3186 | E37: 3495 | F37: 3672 | G37: 3829 | H37: 3984 | I37: 4132 | J37: 4279 | K37: 4438 | L37: 4580 | M37: 0 | N37: 0 | O37: 0 | P37: 0 | Q37: 0 | R37: 0 | S37: 0 | T37: 0 | U37: 0 | V37: 0 | AB37: 10 | AC37: OOP
A38: Schoon-1 | B38: Schoonmaak | C38: 1734 | D38: 1753 | E38: 1824 | F38: 1857 | G38: 1894 | H38: 1933 | I38: 1983 | J38: 0 | K38: 0 | L38: 0 | M38: 0 | N38: 0 | O38: 0 | P38: 0 | Q38: 0 | R38: 0 | S38: 0 | T38: 0 | U38: 0 | V38: 0 | AB38: 7 | AC38: OOP
A39: Schoon-2 | B39: Schoonmaak | C39: 1734 | D39: 1789 | E39: 1857 | F39: 1933 | G39: 1983 | H39: 2040 | I39: 2110 | J39: 2176 | K39: 0 | L39: 0 | M39: 0 | N39: 0 | O39: 0 | P39: 0 | Q39: 0 | R39: 0 | S39: 0 | T39: 0 | U39: 0 | V39: 0 | AB39: 8 | AC39: OOP
A40: Schoon-3 | B40: Schoonmaak | C40: 1734 | D40: 1857 | E40: 1933 | F40: 2040 | G40: 2110 | H40: 2176 | I40: 2241 | J40: 2304 | K40: 2367 | L40: 0 | M40: 0 | N40: 0 | O40: 0 | P40: 0 | Q40: 0 | R40: 0 | S40: 0 | T40: 0 | U40: 0 | V40: 0 | AB40: 9 | AC40: OOP
A41: Schoon-4 | B41: Schoonmaak | C41: 1753 | D41: 1824 | E41: 1894 | F41: 1983 | G41: 2110 | H41: 2176 | I41: 2241 | J41: 2304 | K41: 2367 | L41: 2428 | M41: 2488 | N41: 0 | O41: 0 | P41: 0 | Q41: 0 | R41: 0 | S41: 0 | T41: 0 | U41: 0 | V41: 0 | AB41: 11 | AC41: OOP
A43: A10 | B43: 1 | C43: 2 | D43: 3 | E43: 4 | F43: 5 | G43: 6 | H43: 7 | I43: 8 | J43: 9 | K43: 10 | L43: 11 | M43: 12 | N43: 13
A44: A11 | B44: 1 | C44: 2 | D44: 3 | E44: 4 | F44: 5 | G44: 6 | H44: 7 | I44: 8 | J44: 9 | K44: 10 | L44: 11 | M44: 12 | N44: 13 | O44: 14 | P44: 15 | Q44: 16
A45: A12 | B45: 1 | C45: 2 | D45: 3 | E45: 4 | F45: 5 | G45: 6 | H45: 7 | I45: 8 | J45: 9 | K45: 10 | L45: 11 | M45: 12
A46: A13 | B46: 1 | C46: 2 | D46: 3 | E46: 4 | F46: 5 | G46: 6 | H46: 7 | I46: 8 | J46: 9 | K46: 10 | L46: 11 | M46: 12 | N46: 13
A47: D11 | B47: 1 | C47: 2 | D47: 3 | E47: 4 | F47: 5 | G47: 6 | H47: 7 | I47: 8 | J47: 9 | K47: 10 | L47: 11 | M47: 12 | N47: 13 | O47: 14 | P47: 15 | Q47: 16
A48: D12 | B48: 1 | C48: 2 | D48: 3 | E48: 4 | F48: 5 | G48: 6 | H48: 7 | I48: 8 | J48: 9 | K48: 10 | L48: 11 | M48: 12
A49: D13 | B49: 1 | C49: 2 | D49: 3 | E49: 4 | F49: 5 | G49: 6 | H49: 7 | I49: 8 | J49: 9 | K49: 10 | L49: 11 | M49: 12 | N49: 13
A50: D14 | B50: 1 | C50: 2 | D50: 3 | E50: 4 | F50: 5 | G50: 6 | H50: 7 | I50: 8 | J50: 9 | K50: 10 | L50: 11
A51: D15 | B51: 1 | C51: 2 | D51: 3 | E51: 4 | F51: 5 | G51: 6 | H51: 7 | I51: 8 | J51: 9 | K51: 10 | L51: 11 | M51: 12
A52: B2 | B52: 1 | C52: 2 | D52: 3 | E52: 4 | F52: 5 | G52: 6 | H52: 7 | I52: 8 | J52: 9 | K52: 10
A53: ID1 | B53: 1 | C53: 2 | D53: 3 | E53: 4 | F53: 5 | G53: 6 | H53: 7
A54: ID2 | B54: 8 | C54: 2 | D54: 3 | E54: 4 | F54: 5 | G54: 6 | H54: 7 | I54: 8
A55: ID3 | B55: 7 | C55: 2 | D55: 3 | E55: 4 | F55: 5 | G55: 6 | H55: 7 | I55: 8 | J55: 9
A63: A10 | B63: A11 | C63: A12 | D63: A13 | E63: D11 | F63: D12 | G63: D13 | H63: D14 | I63: D15 | J63: ID1 | K63: ID2 | L63: ID3 | M63: LB | N63: LC | O63: LD | P63: LE | Q63: LIO1 | R63: Schoon-1 | S63: Schoon-2 | T63: Schoon-3 | U63: Schoon-4 | V63: 1 | W63: 2 | X63: 3 | Y63: 4 | Z63: 5 | AA63: 6 | AB63: 7 | AC63: 8 | AD63: 9 | AE63: 10 | AF63: 11 | AG63: 12 | AH63: 13 | AI63: 14 | AJ63: 15 | AK63: 16 | AL63: B2
A64: 1 | B64: 1 | C64: 1 | D64: 1 | E64: 1 | F64: 1 | G64: 1 | H64: 1 | I64: 1 | J64: 1 | K64: 8 | L64: 7 | M64: 1 | N64: 1 | O64: 1 | P64: 1 | Q64: 1 | R64: 1 | S64: 1 | T64: 1 | U64: 1 | V64: 1 | W64: 1 | X64: 1 | Y64: 1 | Z64: 1 | AA64: 1 | AB64: 1 | AC64: 1 | AD64: 1 | AE64: 1 | AF64: 1 | AG64: 1 | AH64: 1 | AI64: 1 | AJ64: 1 | AK64: 1 | AL64: 1
A65: 2 | B65: 2 | C65: 2 | D65: 2 | E65: 2 | F65: 2 | G65: 2 | H65: 2 | I65: 2 | J65: 2 | K65: 2 | L65: 2 | M65: 2 | N65: 2 | O65: 2 | P65: 2 | R65: 2 | S65: 2 | T65: 2 | U65: 2 | V65: 2 | W65: 2 | X65: 2 | Y65: 2 | Z65: 2 | AA65: 2 | AB65: 2 | AC65: 2 | AD65: 2 | AE65: 2 | AF65: 2 | AG65: 2 | AH65: 2 | AI65: 2 | AJ65: 2 | AK65: 2 | AL65: 2
A66: 3 | B66: 3 | C66: 3 | D66: 3 | E66: 3 | F66: 3 | G66: 3 | H66: 3 | I66: 3 | J66: 3 | K66: 3 | L66: 3 | M66: 3 | N66: 3 | O66: 3 | P66: 3 | R66: 3 | S66: 3 | T66: 3 | U66: 3 | V66: 3 | W66: 3 | X66: 3 | Y66: 3 | Z66: 3 | AA66: 3 | AB66: 3 | AC66: 3 | AD66: 3 | AE66: 3 | AF66: 3 | AG66: 3 | AH66: 3 | AI66: 3 | AJ66: 3 | AK66: 3 | AL66: 3
A67: 4 | B67: 4 | C67: 4 | D67: 4 | E67: 4 | F67: 4 | G67: 4 | H67: 4 | I67: 4 | J67: 4 | K67: 4 | L67: 4 | M67: 4 | N67: 4 | O67: 4 | P67: 4 | R67: 4 | S67: 4 | T67: 4 | U67: 4 | V67: 4 | W67: 4 | X67: 4 | Y67: 4 | Z67: 4 | AA67: 4 | AB67: 4 | AC67: 4 | AD67: 4 | AE67: 4 | AF67: 4 | AG67: 4 | AH67: 4 | AI67: 4 | AJ67: 4 | AK67: 4 | AL67: 4
A68: 5 | B68: 5 | C68: 5 | D68: 5 | E68: 5 | F68: 5 | G68: 5 | H68: 5 | I68: 5 | J68: 5 | K68: 5 | L68: 5 | M68: 5 | N68: 5 | O68: 5 | P68: 5 | R68: 5 | S68: 5 | T68: 5 | U68: 5 | V68: 5 | W68: 5 | X68: 5 | Y68: 5 | Z68: 5 | AA68: 5 | AB68: 5 | AC68: 5 | AD68: 5 | AE68: 5 | AF68: 5 | AG68: 5 | AH68: 5 | AI68: 5 | AJ68: 5 | AK68: 5 | AL68: 5
A69: 6 | B69: 6 | C69: 6 | D69: 6 | E69: 6 | F69: 6 | G69: 6 | H69: 6 | I69: 6 | J69: 6 | K69: 6 | L69: 6 | M69: 6 | N69: 6 | O69: 6 | P69: 6 | R69: 6 | S69: 6 | T69: 6 | U69: 6 | V69: 6 | W69: 6 | X69: 6 | Y69: 6 | Z69: 6 | AA69: 6 | AB69: 6 | AC69: 6 | AD69: 6 | AE69: 6 | AF69: 6 | AG69: 6 | AH69: 6 | AI69: 6 | AJ69: 6 | AK69: 6 | AL69: 6
A70: 7 | B70: 7 | C70: 7 | D70: 7 | E70: 7 | F70: 7 | G70: 7 | H70: 7 | I70: 7 | J70: 7 | K70: 7 | L70: 7 | M70: 7 | N70: 7 | O70: 7 | P70: 7 | R70: 7 | S70: 7 | T70: 7 | U70: 7 | V70: 7 | W70: 7 | X70: 7 | Y70: 7 | Z70: 7 | AA70: 7 | AB70: 7 | AC70: 7 | AD70: 7 | AE70: 7 | AF70: 7 | AG70: 7 | AH70: 7 | AI70: 7 | AJ70: 7 | AK70: 7 | AL70: 7
A71: 8 | B71: 8 | C71: 8 | D71: 8 | E71: 8 | F71: 8 | G71: 8 | H71: 8 | I71: 8 | K71: 8 | L71: 8 | M71: 8 | N71: 8 | O71: 8 | P71: 8 | S71: 8 | T71: 8 | U71: 8 | W71: 8 | X71: 8 | Y71: 8 | Z71: 8 | AA71: 8 | AB71: 8 | AC71: 8 | AD71: 8 | AE71: 8 | AF71: 8 | AG71: 8 | AH71: 8 | AI71: 8 | AJ71: 8 | AK71: 8 | AL71: 8
A72: 9 | B72: 9 | C72: 9 | D72: 9 | E72: 9 | F72: 9 | G72: 9 | H72: 9 | I72: 9 | L72: 9 | M72: 9 | N72: 9 | O72: 9 | P72: 9 | T72: 9 | U72: 9 | X72: 9 | Y72: 9 | Z72: 9 | AA72: 9 | AB72: 9 | AC72: 9 | AD72: 9 | AE72: 9 | AF72: 9 | AG72: 9 | AH72: 9 | AI72: 9 | AJ72: 9 | AK72: 9 | AL72: 9
A73: 10 | B73: 10 | C73: 10 | D73: 10 | E73: 10 | F73: 10 | G73: 10 | H73: 10 | I73: 10 | M73: 10 | N73: 10 | O73: 10 | P73: 10 | U73: 10 | Y73: 10 | Z73: 10 | AA73: 10 | AB73: 10 | AC73: 10 | AD73: 10 | AE73: 10 | AF73: 10 | AG73: 10 | AH73: 10 | AI73: 10 | AJ73: 10 | AK73: 10 | AL73: 10
A74: 11 | B74: 11 | C74: 11 | D74: 11 | E74: 11 | F74: 11 | G74: 11 | H74: 11 | I74: 11 | M74: 11 | N74: 11 | O74: 11 | P74: 11 | U74: 11 | Y74: 11 | Z74: 11 | AA74: 11 | AB74: 11 | AC74: 11 | AE74: 11 | AF74: 11 | AG74: 11 | AH74: 11 | AI74: 11 | AJ74: 11 | AK74: 11
A75: 12 | B75: 12 | C75: 12 | D75: 12 | E75: 12 | F75: 12 | G75: 12 | I75: 12 | M75: 12 | N75: 12 | O75: 12 | P75: 12 | Z75: 12 | AB75: 12 | AC75: 12 | AE75: 12 | AF75: 12 | AG75: 12 | AH75: 12 | AJ75: 12 | AK75: 12
A76: 13 | B76: 13 | D76: 13 | E76: 13 | G76: 13 | AC76: 13 | AE76: 13 | AF76: 13 | AH76: 13
B77: 14 | E77: 14 | AF77: 14
B78: 15 | E78: 15 | AF78: 15
B79: 16 | E79: 16 | AF79: 16
A87: A10
A88: A11
A89: A12
A90: A13
A91: D11
A92: D12
A93: D13
A94: D14
A95: D15
A96: ID1
A97: ID2
A98: ID3
A99: LB
A100: LC
A101: LD
A102: LE
A103: LIO1
A104: Schoon-1
A105: Schoon-2
A106: Schoon-3
A107: Schoon-4
A108: 1
A109: 2
A110: 3
A111: 4
A112: 5
A113: 6
A114: 7
A115: 8
A116: 9
A117: 10
A118: 11
A119: 12
A120: 13
A121: 14
A122: 15
A123: 16
A124: B2
